{"text_format":"3","workbook":"xlsx","n_sheets":3,"sheets":["Başlangıç","Hediye Bütçesi ve İzleyici","Veri"],"not_rendered":{"charts":1,"defined_names":1},"read":"whole","date_system":"1900"}

{"sheet":"Başlangıç","index":0,"n_rows":7,"n_cols":2,"rows_kept":7}
[null,"Şablon Hakkında"]
[null,"Hediye satın alımlarınızı kaydetmek ve bunları bütçeyle kıyaslayarak izlemek için bu şablonu kullanın."]
[null,"Tabloya aileniz ile arkadaşlarınızın adını, hediye ürünleri, bütçe olarak oluşturulan ve harcanan tutarı, notları girin ve özel gün ile etkinlik ayını seçin."]
[null,"Aylık Genel Bakış Grafiği otomatik olarak güncelleştirilir."]
[null,"Not: "]
[null,"HEDİYE BÜTÇESİ VE İZLEYİCİ çalışma sayfasının A sütununda ek yönergeler sağlanmıştır. Bu metin özellikle gizlendi. Metni kaldırmak için A sütununu ve ardından SİL seçeneğini belirleyin. Metni göstermek için A sütununu seçip yazı tipi rengini değiştirin."]
[null,"Tablo hakkında daha fazla bilgi edinmek için bir tabloda SHIFT ve F10 tuşlarına basın, TABLO seçeneğini ve ardından ALTERNATİF METİN seçeneğini belirleyin."]

{"sheet":"Hediye Bütçesi ve İzleyici","index":1,"n_rows":10,"n_cols":13,"rows_kept":10,"merged":[[0,1,0,4],[0,5,0,12],[1,1,1,2],[2,1,2,12],[3,1,3,3]]}
["Bu çalışma sayfasında kişisel bir Hediye Bütçesi ve İzleyici oluşturun. Çalışma sayfasının başlığı sağdaki hücrede ve ipucu F1 hücresindedir. Bu çalışma sayfasının nasıl kullanılacağına yönelik yardımcı yönergeler bu sütundaki hücrelerdedir.","Hediye Bütçesi ve İzleyici",{"$nulls":3},"Her yeni yılın başında, doldurabildiğiniz kadarını doldurun. Aileniz ile arkadaşlarınızın adını girin, hediyeyle ilişkili özel günü seçin, etkinliğin gerçekleşeceği ayı belirleyin ve ne kadar harcama yapmak istediğinizi yazın. Tüm kişiler, her farklı özel gün (doğum günü, bayram, parti vb.) için tabloda birden fazla görünebilir."]
["Aylık Genel Bakış etiketi sağdaki hücrede ve ipucu D2 hücresindedir.","Aylık Genel Bakış",null,"Önceden plan yapmak için grafiği kullanarak gelecek aylara göz atın. Satın alımlarınızı, bütçenizle karşılaştırarak izlemek için kaydedin."]
["Bütçe olarak oluşturulan tutarların sütun grafiği, harcanan tutarın çizgi grafik katmanıyla birlikte sağdaki hücrededir.","Bütçe olarak oluşturulan tutarların sütun grafiği, harcanan tutarın çizgi grafik katmanıyla birlikte bu hücrededir."]
["Hediye Bütçesi ve İzleyici etiketi sağdaki hücrededir.","Hediye Bütçesi ve İzleyici"]
["Sağdaki hücrede başlayan Bütçe İzleyicisi tablosuna ayrıntıları girin.","Kim","Özel Gün","Ay","Tutar\nbütçe olarak oluşturulan","Tutar\nharcanan","Hediye","Hediye bağlantısı","Mağaza içi/\nÇevrimiçi","Satın alındı mı?","Ambalajlandı mı?","Teslim edildi mi?","Notlar"]
[null,"Ad 1","Doğum Günleri","Haziran",{"v":50,"d":"₺50"},{"v":30,"d":"₺30"},"Ayakkabılar","Satıcı","Çevrimiçi","Evet","Hayır","Hayır","16/06, Sinema bileti"]
[null,"Ad 2","Yıl Dönümleri","Nisan",{"v":20,"d":"₺20"},{"v":20,"d":"₺20"},"Kedi","Satıcı","Mağaza içi","Hayır","Hayır","Hayır","Köpekleri sevdiğinden bahsetti"]
[null,"Ad 3","Bayramlar","Temmuz",{"v":50,"d":"₺50"},{"v":70,"d":"₺70"},"Kulaklık","Satıcı","Çevrimiçi","Hayır","Hayır","Hayır","Yatakhane eşyaları"]
[null,"Ad 4","Doğum Günleri","Ocak",{"v":20,"d":"₺20"},{"v":30,"d":"₺30"},"Oyun","Satıcı","Mağaza içi","Evet","Evet","Evet"]
[null,"Ad 5","Düğünler","Haziran",{"v":100,"d":"₺100"},{"v":150,"d":"₺150"},"Kristal vazo","Satıcı","Mağaza içi","Evet","Evet","Hayır"]

{"sheet":"Veri","index":2,"n_rows":13,"n_cols":8,"rows_kept":13,"hidden":true}
["Özel Günler",null,"Tarih","Tarih","Bütçe Tutarı\nDoğum Günleri","Bütçe Tutarı\nBayramlar","Bütçe Tutarı\nDiğer","Harcanan Tutar"]
["Doğum Günleri",null,"Ocak","Oca",{"$f":"SUMIFS(BudgetTracker[Tutar\nbütçe olarak oluşturulan],BudgetTracker[Ay],\"Ocak\",BudgetTracker[Özel Gün],\"Doğum Günleri\")","v":{"v":20,"d":"₺20"}},{"$f":"SUMIFS(BudgetTracker[Tutar\nbütçe olarak oluşturulan],BudgetTracker[Ay],\"Ocak\",BudgetTracker[Özel Gün],\"Bayramlar\")","v":{"v":0,"d":"₺0"}},{"$f":"SUMIFS(BudgetTracker[Tutar\nbütçe olarak oluşturulan],BudgetTracker[Ay],\"Ocak\",BudgetTracker[Özel Gün],\"<>Bayramlar\",BudgetTracker[Özel Gün],\"<>Doğum Günleri\")","v":{"v":0,"d":"₺0"}},{"$f":"SUMIFS(BudgetTracker[Tutar\nharcanan],BudgetTracker[Ay],\"Ocak\")","v":{"v":30,"d":"₺30"}}]
["Bayramlar",null,"Şubat","Şub",{"$f":"SUMIFS(BudgetTracker[Tutar\nbütçe olarak oluşturulan],BudgetTracker[Ay],\"Şubat\",BudgetTracker[Özel Gün],\"Doğum Günleri\")","v":{"v":0,"d":"₺0"}},{"$f":"SUMIFS(BudgetTracker[Tutar\nbütçe olarak oluşturulan],BudgetTracker[Ay],\"Şubat\",BudgetTracker[Özel Gün],\"Bayramlar\")","v":{"v":0,"d":"₺0"}},{"$f":"SUMIFS(BudgetTracker[Tutar\nbütçe olarak oluşturulan],BudgetTracker[Ay],\"Şubat\",BudgetTracker[Özel Gün],\"<>Bayramlar\",BudgetTracker[Özel Gün],\"<>Doğum Günleri\")","v":{"v":0,"d":"₺0"}},{"$f":"SUMIFS(BudgetTracker[Tutar\nharcanan],BudgetTracker[Ay],\"Şubat\")","v":{"v":0,"d":"₺0"}}]
["Yıl Dönümleri",null,"Mart","Mar",{"$f":"SUMIFS(BudgetTracker[Tutar\nbütçe olarak oluşturulan],BudgetTracker[Ay],\"Mart\",BudgetTracker[Özel Gün],\"Doğum Günleri\")","v":{"v":0,"d":"₺0"}},{"$f":"SUMIFS(BudgetTracker[Tutar\nbütçe olarak oluşturulan],BudgetTracker[Ay],\"Mart\",BudgetTracker[Özel Gün],\"Bayramlar\")","v":{"v":0,"d":"₺0"}},{"$f":"SUMIFS(BudgetTracker[Tutar\nbütçe olarak oluşturulan],BudgetTracker[Ay],\"Mart\",BudgetTracker[Özel Gün],\"<>Bayramlar\",BudgetTracker[Özel Gün],\"<>Doğum Günleri\")","v":{"v":0,"d":"₺0"}},{"$f":"SUMIFS(BudgetTracker[Tutar\nharcanan],BudgetTracker[Ay],\"Mart\")","v":{"v":0,"d":"₺0"}}]
["Düğünler",null,"Nisan","Nis",{"$f":"SUMIFS(BudgetTracker[Tutar\nbütçe olarak oluşturulan],BudgetTracker[Ay],\"Nisan\",BudgetTracker[Özel Gün],\"Doğum Günleri\")","v":{"v":0,"d":"₺0"}},{"$f":"SUMIFS(BudgetTracker[Tutar\nbütçe olarak oluşturulan],BudgetTracker[Ay],\"Nisan\",BudgetTracker[Özel Gün],\"Bayramlar\")","v":{"v":0,"d":"₺0"}},{"$f":"SUMIFS(BudgetTracker[Tutar\nbütçe olarak oluşturulan],BudgetTracker[Ay],\"Nisan\",BudgetTracker[Özel Gün],\"<>Bayramlar\",BudgetTracker[Özel Gün],\"<>Doğum Günleri\")","v":{"v":20,"d":"₺20"}},{"$f":"SUMIFS(BudgetTracker[Tutar\nharcanan],BudgetTracker[Ay],\"Nisan\")","v":{"v":20,"d":"₺20"}}]
["Gelin Partileri",null,"May","May",{"$f":"SUMIFS(BudgetTracker[Tutar\nbütçe olarak oluşturulan],BudgetTracker[Ay],\"May\",BudgetTracker[Özel Gün],\"Doğum Günleri\")","v":{"v":0,"d":"₺0"}},{"$f":"SUMIFS(BudgetTracker[Tutar\nbütçe olarak oluşturulan],BudgetTracker[Ay],\"May\",BudgetTracker[Özel Gün],\"Bayramlar\")","v":{"v":0,"d":"₺0"}},{"$f":"SUMIFS(BudgetTracker[Tutar\nbütçe olarak oluşturulan],BudgetTracker[Ay],\"May\",BudgetTracker[Özel Gün],\"<>Bayramlar\",BudgetTracker[Özel Gün],\"<>Doğum Günleri\")","v":{"v":0,"d":"₺0"}},{"$f":"SUMIFS(BudgetTracker[Tutar\nharcanan],BudgetTracker[Ay],\"May\")","v":{"v":0,"d":"₺0"}}]
["Doğum Öncesi Partileri",null,"Haziran","Haz",{"$f":"SUMIFS(BudgetTracker[Tutar\nbütçe olarak oluşturulan],BudgetTracker[Ay],\"Haziran\",BudgetTracker[Özel Gün],\"Doğum Günleri\")","v":{"v":50,"d":"₺50"}},{"$f":"SUMIFS(BudgetTracker[Tutar\nbütçe olarak oluşturulan],BudgetTracker[Ay],\"Haziran\",BudgetTracker[Özel Gün],\"Bayramlar\")","v":{"v":0,"d":"₺0"}},{"$f":"SUMIFS(BudgetTracker[Tutar\nbütçe olarak oluşturulan],BudgetTracker[Ay],\"Haziran\",BudgetTracker[Özel Gün],\"<>Bayramlar\",BudgetTracker[Özel Gün],\"<>Doğum Günleri\")","v":{"v":100,"d":"₺100"}},{"$f":"SUMIFS(BudgetTracker[Tutar\nharcanan],BudgetTracker[Ay],\"Haziran\")","v":{"v":180,"d":"₺180"}}]
["Mezuniyetler",null,"Temmuz","Tem",{"$f":"SUMIFS(BudgetTracker[Tutar\nbütçe olarak oluşturulan],BudgetTracker[Ay],\"Temmuz\",BudgetTracker[Özel Gün],\"Doğum Günleri\")","v":{"v":0,"d":"₺0"}},{"$f":"SUMIFS(BudgetTracker[Tutar\nbütçe olarak oluşturulan],BudgetTracker[Ay],\"Temmuz\",BudgetTracker[Özel Gün],\"Bayramlar\")","v":{"v":50,"d":"₺50"}},{"$f":"SUMIFS(BudgetTracker[Tutar\nbütçe olarak oluşturulan],BudgetTracker[Ay],\"Temmuz\",BudgetTracker[Özel Gün],\"<>Bayramlar\",BudgetTracker[Özel Gün],\"<>Doğum Günleri\")","v":{"v":0,"d":"₺0"}},{"$f":"SUMIFS(BudgetTracker[Tutar\nharcanan],BudgetTracker[Ay],\"Temmuz\")","v":{"v":70,"d":"₺70"}}]
["Diğer",null,"Ağustos","Ağu",{"$f":"SUMIFS(BudgetTracker[Tutar\nbütçe olarak oluşturulan],BudgetTracker[Ay],\"Ağustos\",BudgetTracker[Özel Gün],\"Doğum Günleri\")","v":{"v":0,"d":"₺0"}},{"$f":"SUMIFS(BudgetTracker[Tutar\nbütçe olarak oluşturulan],BudgetTracker[Ay],\"Ağustos\",BudgetTracker[Özel Gün],\"Bayramlar\")","v":{"v":0,"d":"₺0"}},{"$f":"SUMIFS(BudgetTracker[Tutar\nbütçe olarak oluşturulan],BudgetTracker[Ay],\"Ağustos\",BudgetTracker[Özel Gün],\"<>Bayramlar\",BudgetTracker[Özel Gün],\"<>Doğum Günleri\")","v":{"v":0,"d":"₺0"}},{"$f":"SUMIFS(BudgetTracker[Tutar\nharcanan],BudgetTracker[Ay],\"Ağustos\")","v":{"v":0,"d":"₺0"}}]
[null,null,"Eylül","Eyl",{"$f":"SUMIFS(BudgetTracker[Tutar\nbütçe olarak oluşturulan],BudgetTracker[Ay],\"Eylül\",BudgetTracker[Özel Gün],\"Doğum Günleri\")","v":{"v":0,"d":"₺0"}},{"$f":"SUMIFS(BudgetTracker[Tutar\nbütçe olarak oluşturulan],BudgetTracker[Ay],\"Eylül\",BudgetTracker[Özel Gün],\"Bayramlar\")","v":{"v":0,"d":"₺0"}},{"$f":"SUMIFS(BudgetTracker[Tutar\nbütçe olarak oluşturulan],BudgetTracker[Ay],\"Eylül\",BudgetTracker[Özel Gün],\"<>Bayramlar\",BudgetTracker[Özel Gün],\"<>Doğum Günleri\")","v":{"v":0,"d":"₺0"}},{"$f":"SUMIFS(BudgetTracker[Tutar\nharcanan],BudgetTracker[Ay],\"Eylül\")","v":{"v":0,"d":"₺0"}}]
[null,null,"Ekim","Eki",{"$f":"SUMIFS(BudgetTracker[Tutar\nbütçe olarak oluşturulan],BudgetTracker[Ay],\"Ekim\",BudgetTracker[Özel Gün],\"Doğum Günleri\")","v":{"v":0,"d":"₺0"}},{"$f":"SUMIFS(BudgetTracker[Tutar\nbütçe olarak oluşturulan],BudgetTracker[Ay],\"Ekim\",BudgetTracker[Özel Gün],\"Bayramlar\")","v":{"v":0,"d":"₺0"}},{"$f":"SUMIFS(BudgetTracker[Tutar\nbütçe olarak oluşturulan],BudgetTracker[Ay],\"Ekim\",BudgetTracker[Özel Gün],\"<>Bayramlar\",BudgetTracker[Özel Gün],\"<>Doğum Günleri\")","v":{"v":0,"d":"₺0"}},{"$f":"SUMIFS(BudgetTracker[Tutar\nharcanan],BudgetTracker[Ay],\"Ekim\")","v":{"v":0,"d":"₺0"}}]
[null,null,"Kasım","Kas",{"$f":"SUMIFS(BudgetTracker[Tutar\nbütçe olarak oluşturulan],BudgetTracker[Ay],\"Kasım\",BudgetTracker[Özel Gün],\"Doğum Günleri\")","v":{"v":0,"d":"₺0"}},{"$f":"SUMIFS(BudgetTracker[Tutar\nbütçe olarak oluşturulan],BudgetTracker[Ay],\"Kasım\",BudgetTracker[Özel Gün],\"Bayramlar\")","v":{"v":0,"d":"₺0"}},{"$f":"SUMIFS(BudgetTracker[Tutar\nbütçe olarak oluşturulan],BudgetTracker[Ay],\"Kasım\",BudgetTracker[Özel Gün],\"<>Bayramlar\",BudgetTracker[Özel Gün],\"<>Doğum Günleri\")","v":{"v":0,"d":"₺0"}},{"$f":"SUMIFS(BudgetTracker[Tutar\nharcanan],BudgetTracker[Ay],\"Kasım\")","v":{"v":0,"d":"₺0"}}]
[null,null,"Aralık","Ara",{"$f":"SUMIFS(BudgetTracker[Tutar\nbütçe olarak oluşturulan],BudgetTracker[Ay],\"Aralık\",BudgetTracker[Özel Gün],\"Doğum Günleri\")","v":{"v":0,"d":"₺0"}},{"$f":"SUMIFS(BudgetTracker[Tutar\nbütçe olarak oluşturulan],BudgetTracker[Ay],\"Aralık\",BudgetTracker[Özel Gün],\"Bayramlar\")","v":{"v":0,"d":"₺0"}},{"$f":"SUMIFS(BudgetTracker[Tutar\nbütçe olarak oluşturulan],BudgetTracker[Ay],\"Aralık\",BudgetTracker[Özel Gün],\"<>Bayramlar\",BudgetTracker[Özel Gün],\"<>Doğum Günleri\")","v":{"v":0,"d":"₺0"}},{"$f":"SUMIFS(BudgetTracker[Tutar\nharcanan],BudgetTracker[Ay],\"Aralık\")","v":{"v":0,"d":"₺0"}}]